bitfinex-derivatives/quotes_BTCF0:USTF0_20241116
["timestamp","ask_amount","ask_price","bid_price","bid_amount"]
[1731765675782,0.47157501,90852.0,90851.0,0.11095761]
[1731765676190,0.47157501,90852.0,90851.0,0.12142725]
[1731765677185,0.47157501,90852.0,90851.0,0.11095761]
[1731765677996,0.47157501,90852.0,90851.0,0.00639943]
[1731765678585,0.47157501,90852.0,90851.0,0.00644973]
[1731765681296,0.47157501,90852.0,90832.0,0.39558844]
[1731765681297,0.055017,90840.0,90834.0,0.32783889]
[1731765681500,0.055018,90839.0,90835.0,0.32783889]
[1731765681699,0.055018,90838.0,90835.0,0.32783889]
[1731765681889,0.055018,90838.0,90833.0,0.32783889]
[1731765682292,0.055018,90838.0,90834.0,0.32783889]
[1731765682500,0.055018,90838.0,90833.0,0.32783889]
[1731765682702,0.055018,90838.0,90832.0,0.43894934]
[1731765682899,0.055018,90838.0,90833.0,0.32783889]
[1731765683598,0.055019,90837.0,90834.0,0.32783889]
[1731765683787,0.05502,90835.0,90834.0,0.32783889]
[1731765684388,0.05502,90835.0,90833.0,0.32783889]
[1731765684788,0.055022,90831.0,90830.0,0.00165129]
[1731765687409,0.055026,90825.0,90824.0,0.00011385]
[1731765687607,0.055026,90825.0,90804.0,0.46163995]
[1731765687608,0.055034,90812.0,90811.0,0.32783889]
[1731765687797,0.055035,90810.0,90809.0,0.32783889]
[1731765687993,0.055035,90810.0,90799.0,0.00165186]
[1731765687994,0.055035,90810.0,90808.0,0.32783889]
[1731765688205,0.055037,90807.0,90806.0,0.32783889]
[1731765688710,0.055037,90807.0,90806.0,0.0001161]
[1731765689303,0.055034,90812.0,90806.0,0.0001161]
[1731765689503,0.3608,90825.0,90813.0,0.10455818]
[1731765689710,0.3608,90825.0,90824.0,0.10455818]
[1731765691912,0.3608,90825.0,90824.0,0.36788557]
[1731765692210,0.3608,90825.0,90824.0,0.10455818]
[1731765692410,0.3608,90825.0,90824.0,0.36786455]
[1731765692601,0.3608,90825.0,90824.0,0.10455818]
[1731765693001,0.3608,90825.0,90824.0,0.36786455]
[1731765693204,0.3608,90825.0,90823.0,0.26330637]
[1731765693405,0.415826,90825.0,90823.0,0.26328811]
[1731765693607,0.3608,90825.0,90822.0,0.26328811]
[1731765693812,0.055027,90823.0,90821.0,0.26328811]
[1731765694018,0.055028,90821.0,90820.0,0.26328811]
[1731765694207,0.3608,90825.0,90815.0,0.32916419]
[1731765694208,0.055031,90816.0,90815.0,0.32916419]
[1731765694403,0.3608,90825.0,90813.0,0.32916419]
[1731765694605,0.3608,90825.0,90818.0,0.26326698]
[1731765694805,0.055029,90820.0,90818.0,0.26326698]
[1731765695010,0.055029,90820.0,90819.0,0.26326698]
[1731765695211,0.055029,90820.0,90818.0,0.26326698]
[1731765696510,0.05503,90817.0,90816.0,0.26326698]
[1731765696907,0.41495024,90825.0,90816.0,0.2632203]
[1731765697106,0.055032,90815.0,90814.0,0.2632203]
[1731765697335,0.3608,90817.0,90806.0,0.0001161]
[1731765697336,0.055035,90809.0,90807.0,0.2632203]
[1731765697614,0.055035,90809.0,90806.0,0.0001161]
[1731765697615,0.3608,90808.0,90806.0,0.0001161]
[1731765697808,0.055037,90807.0,90806.0,0.0001161]
[1731765699511,0.10978709,90807.0,90806.0,0.0001161]
[1731765700411,0.10978709,90807.0,90806.0,1e-07]
[1731765705006,0.20078709,90807.0,90806.0,1e-07]
[1731765705410,0.10978709,90807.0,90806.0,1e-07]
[1731765705612,0.20078709,90807.0,90806.0,1e-07]
[1731765706222,0.055037,90807.0,90806.0,1e-07]
[1731765709514,0.385397,90807.0,90806.0,1e-07]
[1731765709719,0.685397,90807.0,90806.0,1e-07]
[1731765712025,0.78995518,90807.0,90772.0,0.32916419]
[1731765712226,0.415857,90773.0,90771.0,0.32916419]
[1731765712415,0.055059,90770.0,90769.0,0.32916419]
[1731765712817,0.055059,90770.0,90767.0,0.32861047]
[1731765713113,0.415857,90773.0,90772.0,0.004]
[1731765714725,0.415857,90773.0,90772.0,0.26294952]
[1731765714726,0.3608,90773.0,90772.0,0.26294952]
[1731765715031,0.3618,90773.0,90772.0,0.33548]
[1731765715827,0.3618,90773.0,90772.0,0.33948]
[1731765715828,0.3628,90773.0,90772.0,0.33948]
[1731765716030,0.417857,90773.0,90772.0,0.009]
[1731765716815,0.055045,90793.0,90772.0,0.009]
[1731765716816,0.055034,90811.0,90788.0,0.055048]
[1731765717016,0.3608,90815.0,90802.0,0.10455818]
[1731765717221,0.055038,90805.0,90802.0,0.10455818]
[1731765717424,0.05456659,90819.0,90802.0,0.10455818]
[1731765717620,0.055036,90808.0,90803.0,0.055039]
[1731765717814,0.3608,90823.0,90802.0,0.10455818]
[1731765718012,0.091,90822.0,90808.0,0.055036]
[1731765718610,0.055032,90814.0,90808.0,0.055036]
[1731765719021,0.091,90822.0,90803.0,9.989e-05]
[1731765719022,0.05503,90818.0,90810.0,0.055035]
[1731765719215,0.055031,90817.0,90810.0,0.055035]
[1731765720127,0.091,90822.0,90803.0,0.05513889]
[1731765720128,0.3608,90815.0,90803.0,0.05513889]
[1731765720424,0.3608,90815.0,90803.0,9.989e-05]
[1731765720727,0.15959618,90805.0,90803.0,9.989e-05]
[1731765721026,0.52039618,90805.0,90803.0,9.989e-05]
[1731765721324,0.415838,90805.0,90803.0,9.989e-05]
[1731765722733,0.52039618,90805.0,90803.0,9.989e-05]
[1731765723326,0.3304,90804.0,90803.0,9.989e-05]
[1731765724432,0.73495818,90804.0,90773.0,0.3286839]
[1731765724625,0.73495818,90804.0,90771.0,0.415858]
[1731765724626,0.055055,90776.0,90774.0,0.29884959]
[1731765724819,0.055055,90776.0,90775.0,0.29884959]
[1731765725722,0.055054,90779.0,90775.0,0.35390559]
[1731765725932,0.055054,90779.0,90777.0,0.32924704]
[1731765726227,0.055054,90779.0,90771.0,0.38418044]
[1731765726228,0.055054,90779.0,90778.0,0.29887227]
[1731765726530,0.055054,90779.0,90778.0,0.2989472]
[1731765726930,0.055054,90779.0,90778.0,0.62827787]
[1731765727323,0.055054,90779.0,90778.0,0.2989472]
[1731765727630,0.056054,90779.0,90778.0,0.3049472]
[1731765728033,0.057054,90779.0,90778.0,0.3049472]
[1731765728832,0.057054,90779.0,90778.0,0.3089472]
[1731765729034,0.16161218,90779.0,90778.0,0.63832577]
[1731765729238,0.16161218,90779.0,90778.0,0.01]
[1731765731038,0.057054,90779.0,90778.0,0.01]
[1731765731237,0.147974,90779.0,90778.0,0.01]
[1731765732036,0.147974,90779.0,90778.0,0.20759479]
[1731765732533,0.20225211,90779.0,90778.0,0.20759479]
[1731765732933,0.147974,90779.0,90778.0,0.20759479]
[1731765733334,0.147974,90779.0,90778.0,0.01]
[1731765736339,0.147974,90779.0,90778.0,0.20759479]
[1731765736641,0.147974,90779.0,90778.0,0.01]
[1731765737032,0.057054,90779.0,90778.0,0.01]
[1731765737339,0.147974,90779.0,90778.0,0.01]
[1731765738145,0.002,90779.0,90778.0,0.27350576]
[1731765738343,0.002,90779.0,90778.0,0.01]
[1731765739434,0.002,90779.0,90778.0,0.33937857]
[1731765739742,0.002,90779.0,90778.0,0.41415142]
[1731765740331,0.002,90779.0,90778.0,0.74461152]
[1731765740535,0.0051,90789.0,90788.0,0.055048]
[1731765740736,0.3608,90795.0,90791.0,0.055046]
[1731765741745,0.3608,90795.0,90792.0,0.0063555]
[1731765741946,0.3608,90795.0,90793.0,0.0063555]
[1731765742144,0.3608,90795.0,90794.0,0.0063555]
[1731765742347,0.00165257,90798.0,90794.0,0.0063555]
[1731765742543,0.00165257,90798.0,90796.0,0.74493967]
[1731765742847,0.0051,90804.0,90798.0,0.055042]
[1731765743043,0.055035,90810.0,90799.0,0.30089532]
[1731765743243,0.055035,90810.0,90805.0,0.32898251]
[1731765743961,0.055035,90810.0,90806.0,0.62892715]
[1731765744134,0.055035,90810.0,90807.0,0.62892715]
[1731765744338,0.055035,90810.0,90808.0,0.32898251]
[1731765744634,0.09092,90816.0,90807.0,0.38401851]
[1731765744835,0.09092,90816.0,90812.0,0.26305438]
[1731765745042,0.09092,90816.0,90813.0,0.26305438]
[1731765745549,0.09092,90816.0,90811.0,0.055034]
[1731765745745,0.09092,90816.0,90808.0,0.10455818]
[1731765745949,0.09092,90816.0,90812.0,0.055033]
[1731765746344,0.145951,90816.0,90812.0,0.055033]
[1731765746646,0.09092,90816.0,90807.0,0.33408251]
[1731765746943,0.055034,90811.0,90807.0,0.0051]
[1731765747244,0.055034,90811.0,90805.0,0.3608]
[1731765747245,0.055034,90811.0,90805.0,0.68978251]
[1731765747450,0.055034,90811.0,90807.0,0.38401851]
[1731765748245,0.055034,90811.0,90809.0,0.32898251]
[1731765748547,0.055034,90811.0,90808.0,0.38401851]
[1731765750450,0.055034,90811.0,90808.0,0.055036]
[1731765750842,0.3608,90817.0,90810.0,0.055035]
[1731765751043,0.3608,90817.0,90816.0,0.19714724]
[1731765751336,0.3608,90817.0,90813.0,0.26286299]
[1731765751541,0.3608,90817.0,90814.0,0.055032]
[1731765751746,0.3608,90817.0,90814.0,0.26286299]
[1731765751951,0.3608,90817.0,90816.0,0.055031]
[1731765752644,0.055031,90816.0,90814.0,0.26286299]
[1731765753049,0.055031,90816.0,90815.0,0.26274802]
[1731765753557,0.055031,90816.0,90814.0,0.26274802]
[1731765754052,0.055031,90816.0,90812.0,0.26274802]
[1731765754441,0.055031,90816.0,90813.0,0.31778002]
[1731765755044,0.055032,90815.0,90813.0,0.055032]
[1731765755240,0.055032,90815.0,90813.0,0.31778002]
[1731765755437,0.055032,90815.0,90813.0,0.055032]
[1731765756054,0.055032,90815.0,90813.0,0.31778002]
[1731765756553,0.055032,90814.0,90811.0,0.26274802]
[1731765756851,0.055032,90814.0,90810.0,0.26274802]
[1731765757046,0.055032,90814.0,90811.0,0.26274802]
[1731765757361,0.055032,90814.0,90810.0,0.26274802]
[1731765758354,0.055033,90813.0,90810.0,0.26274802]
[1731765759052,0.055033,90813.0,90811.0,0.26274802]
[1731765760550,0.055033,90813.0,90810.0,0.26274802]
[1731765760951,0.055033,90813.0,90811.0,0.26274802]
[1731765761360,0.055033,90813.0,90810.0,0.26274802]
[1731765761652,0.055033,90813.0,90808.0,0.15959418]
[1731765761653,0.055033,90813.0,90812.0,0.26274802]
[1731765762157,0.055033,90813.0,90811.0,0.26274802]
[1731765762353,0.055033,90813.0,90812.0,0.26274802]
[1731765762549,0.09088,90821.0,90810.0,0.2627181]
[1731765762748,0.055031,90816.0,90814.0,0.19704234]
[1731765762958,0.09088,90821.0,90813.0,0.1970449]
[1731765763159,0.055032,90815.0,90813.0,0.1970449]
[1731765763362,0.055032,90815.0,90814.0,0.1970449]
[1731765763567,0.3608,90822.0,90819.0,0.055029]
[1731765763856,0.3608,90822.0,90820.0,0.11100072]
[1731765764056,0.3608,90822.0,90821.0,0.00644254]
[1731765764758,0.3608,90822.0,90821.0,0.26922961]
[1731765765355,0.3608,90822.0,90821.0,0.00644254]
[1731765765551,0.3608,90822.0,90821.0,0.26943454]
[1731765765745,0.3608,90822.0,90821.0,0.00644254]
[1731765766449,0.3608,90822.0,90821.0,0.20368962]
[1731765766651,0.3608,90822.0,90821.0,0.00644254]
[1731765766852,0.3608,90822.0,90821.0,0.20380353]
[1731765767446,0.3608,90822.0,90821.0,0.00644254]
[1731765767956,0.05667401,90831.0,90821.0,0.00640426]
[1731765768150,0.05667401,90831.0,90826.0,0.36787319]
[1731765768151,0.09004,90827.0,90826.0,0.36787319]
[1731765768350,0.09004,90827.0,90826.0,0.11096244]
[1731765768760,0.145064,90828.0,90826.0,0.11096244]
[1731765768958,0.145064,90828.0,90827.0,0.00640426]
[1731765769154,0.145064,90828.0,90827.0,0.30909499]
[1731765770661,0.145064,90828.0,90827.0,0.70468343]
[1731765771050,0.145064,90828.0,90827.0,0.30909499]
[1731765771252,0.00165201,90831.0,90827.0,0.30909499]
[1731765771458,0.09004,90830.0,90828.0,0.69827917]
[1731765771652,0.09004,90830.0,90829.0,0.30269073]
[1731765771859,0.09004,90830.0,90829.0,0.30912237]
[1731765772049,0.09004,90830.0,90829.0,0.70471081]
[1731765772256,0.09004,90830.0,90829.0,0.30912237]
[1731765772560,0.09004,90834.0,90832.0,0.055021]
[1731765772763,0.09004,90834.0,90833.0,0.41468274]
[1731765774361,0.09004,90834.0,90833.0,0.81027118]
[1731765774661,0.0051,90846.0,90838.0,0.055018]
[1731765774859,0.0051,90846.0,90838.0,0.72705069]
[1731765777256,0.0051,90846.0,90838.0,0.36514256]
[1731765777459,0.0051,90846.0,90838.0,0.7050295]
[1731765777764,0.055017,90840.0,90838.0,0.31012456]
[1731765778159,0.055017,90840.0,90838.0,0.3354597]
[1731765778365,0.055017,90840.0,90838.0,0.00643164]
[1731765778663,0.055017,90840.0,90833.0,0.36216]
[1731765778664,0.05502,90835.0,90833.0,0.3608]
[1731765779166,0.05502,90835.0,90834.0,0.00640006]
[1731765781176,0.3608,90835.0,90831.0,0.32902806]
[1731765781485,0.3608,90835.0,90825.0,0.32902806]
[1731765781486,0.055023,90830.0,90825.0,0.32902806]
[1731765781656,0.055023,90830.0,90807.0,0.10455818]
[1731765781657,0.3608,90835.0,90827.0,0.32902806]
[1731765781864,0.41585419,90835.0,90832.0,0.26321451]
[1731765782064,0.05502,90834.0,90833.0,0.00641369]
[1731765782269,0.3853,90834.0,90833.0,0.2696282]
[1731765782461,0.3853,90834.0,90833.0,0.00641369]
[1731765784273,0.05502,90834.0,90833.0,0.00641369]
[1731765784471,0.05502,90834.0,90833.0,0.20384858]
[1731765784772,0.05502,90834.0,90833.0,0.20385362]
[1731765785279,0.36140001,90835.0,90833.0,0.00641873]
[1731765785465,0.00012597,90839.0,90834.0,0.00641873]
[1731765785767,0.055019,90837.0,90835.0,0.01689054]
[1731765785969,0.055021,90833.0,90832.0,0.32902806]
[1731765786172,0.055021,90833.0,90832.0,0.01701653]
[1731765786872,0.055021,90833.0,90832.0,0.0065443]
[1731765787073,0.145061,90833.0,90832.0,0.0065443]
[1731765787267,0.145061,90833.0,90832.0,0.20401411]
[1731765787466,0.145061,90833.0,90832.0,0.2040274]
[1731765787776,0.145061,90833.0,90832.0,0.0065443]
[1731765787965,0.145061,90833.0,90832.0,0.20402403]
[1731765788275,0.145061,90833.0,90829.0,0.26327518]
[1731765788571,0.09004,90833.0,90832.0,0.19749848]
[1731765788776,0.055022,90831.0,90830.0,0.00651736]
[1731765788967,0.055022,90831.0,90810.0,0.39490494]
[1731765788968,0.33028,90832.0,90809.0,0.32902806]
[1731765789163,0.46535818,90810.0,90807.0,0.32902806]
[1731765789378,0.055037,90806.0,90805.0,0.32902806]
[1731765789571,0.055037,90806.0,90804.0,0.32902806]
[1731765789777,0.055041,90800.0,90798.0,0.32902806]
[1731765789979,0.055041,90800.0,90799.0,0.63032505]
[1731765790180,0.055041,90800.0,90799.0,0.32902806]
[1731765790476,0.055041,90800.0,90798.0,0.32902806]
[1731765790976,0.3608,90802.0,90799.0,0.63064647]
[1731765791272,0.08952,90815.0,90800.0,0.66110523]
[1731765791462,0.055031,90816.0,90811.0,0.32903264]
[1731765791666,0.055031,90816.0,90812.0,0.63061038]
[1731765791869,0.055031,90816.0,90812.0,0.32903264]
[1731765792284,0.3608,90820.0,90818.0,0.05503]
[1731765792285,0.08952,90820.0,90818.0,0.05503]
[1731765792574,0.144547,90824.0,90818.0,0.38402674]
[1731765792766,0.144547,90824.0,90819.0,0.63015494]
[1731765792967,0.144547,90824.0,90820.0,0.32899674]
[1731765792968,0.055027,90824.0,90820.0,0.32899674]
[1731765794068,0.08952,90826.0,90820.0,0.32899674]
[1731765794270,0.055027,90823.0,90820.0,0.32899674]
[1731765794469,0.055028,90822.0,90820.0,0.32899674]
[1731765794668,0.415828,90822.0,90821.0,0.32899674]
[1731765794864,0.415828,90822.0,90819.0,0.32899674]
[1731765794865,0.055029,90820.0,90819.0,0.32899674]
[1731765795072,0.05503,90817.0,90815.0,0.32899674]
[1731765795274,0.05503,90817.0,90816.0,0.32899674]
[1731765795676,0.3608,90823.0,90814.0,0.32899674]
[1731765795869,0.3608,90823.0,90807.0,0.3608]
[1731765795870,0.055032,90815.0,90813.0,0.32899674]
[1731765796072,0.3608,90814.0,90811.0,0.32905619]
[1731765796274,0.08952,90813.0,90806.0,0.32905619]
[1731765796485,0.05504,90801.0,90800.0,0.32905619]
[1731765796673,0.05504,90801.0,90799.0,0.32905619]
[1731765796674,0.41584,90801.0,90799.0,0.32905619]
[1731765796873,0.055041,90800.0,90799.0,0.32905619]
[1731765797074,0.055041,90800.0,90798.0,0.32905619]
[1731765797273,0.055041,90800.0,90799.0,0.32905619]
[1731765797474,0.055041,90800.0,90798.0,0.32905619]
[1731765798972,0.055041,90800.0,90797.0,0.32905619]
[1731765799170,0.055041,90800.0,90792.0,0.055045]
[1731765799171,0.055035,90809.0,90799.0,0.32905619]
[1731765799378,0.08952,90808.0,90804.0,0.10455818]
[1731765799588,0.3608,90814.0,90805.0,0.32886883]
[1731765799773,0.3608,90814.0,90810.0,0.15959318]
[1731765800777,0.3608,90814.0,90812.0,0.055033]
[1731765801081,0.3608,90814.0,90813.0,0.0169625]
[1731765802080,0.3608,90814.0,90813.0,0.00652352]
[1731765802281,0.3608,90814.0,90813.0,0.63108215]
[1731765803386,0.08952,90820.0,90815.0,0.055031]
[1731765803683,0.055023,90829.0,90819.0,0.32869945]
[1731765803886,0.055023,90829.0,90825.0,0.10455818]
[1731765804283,0.415819,90837.0,90829.0,0.055023]
[1731765804674,0.00060001,90832.0,90829.0,0.055023]
[1731765804881,0.05502,90835.0,90829.0,0.055023]
[1731765805483,0.05502,90835.0,90833.0,0.10455818]
[1731765808581,0.3608,90837.0,90833.0,0.4332421]
[1731765808781,0.00012597,90839.0,90838.0,0.055018]
[1731765808981,0.00012597,90839.0,90838.0,0.68620905]
[1731765809189,0.00012597,90839.0,90838.0,0.357211]
[1731765809996,0.00012597,90839.0,90838.0,0.36372105]
[1731765811593,0.0051,90846.0,90845.0,0.055014]
[1731765811903,0.36755156,90854.0,90845.0,0.11106823]
[1731765812099,0.36245156,90854.0,90846.0,0.00651005]
[1731765812399,0.055011,90849.0,90847.0,0.00651005]
[1731765812706,0.055011,90849.0,90848.0,0.00660641]
[1731765819113,0.055011,90849.0,90848.0,0.01705735]
[1731765820212,0.52036918,90849.0,90848.0,0.00660641]
[1731765820801,1.29344243,90849.0,90848.0,4.1e-07]
[1731765821107,1.18888425,90849.0,90848.0,4.1e-07]
[1731765821312,0.88888425,90849.0,90848.0,4.1e-07]
[1731765821702,1.18888425,90849.0,90848.0,4.1e-07]
[1731765822218,0.88888425,90849.0,90848.0,4.1e-07]
[1731765822809,0.55864425,90849.0,90848.0,4.1e-07]
[1731765823411,0.504491,90849.0,90848.0,4.1e-07]
[1731765825103,0.504491,90849.0,90848.0,0.01044702]
[1731765825519,0.504491,90849.0,90848.0,0.01044716]
[1731765825520,0.415811,90849.0,90848.0,0.01044716]
[1731765826204,0.415811,90849.0,90848.0,4.1e-07]
[1731765830215,0.415811,90849.0,90848.0,0.01047418]
[1731765831115,0.415811,90849.0,90848.0,4.1e-07]
[1731765831620,0.415811,90849.0,90848.0,0.62928583]
[1731765832015,0.415811,90849.0,90848.0,0.32877239]
[1731765832318,0.415811,90849.0,90848.0,0.64023132]
[1731765832723,0.415811,90849.0,90848.0,0.64677518]
[1731765833631,0.415811,90849.0,90848.0,0.64754771]
[1731765833824,0.415811,90849.0,90848.0,0.01701547]
[1731765835328,0.415811,90849.0,90848.0,0.00654427]
[1731765836122,0.415811,90849.0,90848.0,0.00652579]
[1731765836828,0.415811,90849.0,90848.0,0.3360703]
[1731765837124,0.415811,90849.0,90848.0,0.00652579]
[1731765837523,0.415811,90849.0,90848.0,0.3360703]
[1731765837818,0.415811,90849.0,90848.0,0.00652579]
[1731765838524,0.415811,90849.0,90848.0,0.63697697]
[1731765838718,0.415811,90849.0,90848.0,0.3360703]
[1731765838914,0.415811,90849.0,90848.0,0.00652579]
[1731765839329,0.88116918,90849.0,90848.0,0.0170061]
[1731765840325,1.18116918,90849.0,90836.0,0.31954505]
[1731765840530,0.3608,90837.0,90825.0,0.39483917]
[1731765840729,0.415825,90826.0,90824.0,0.39483917]
[1731765840939,0.055029,90819.0,90815.0,0.39483917]
[1731765841231,0.055029,90819.0,90817.0,0.30019181]
[1731765841428,0.055029,90819.0,90818.0,0.30019181]
[1731765841626,0.055029,90819.0,90818.0,0.69567452]
[1731765842324,0.055029,90819.0,90818.0,0.30019181]
[1731765842723,0.05708164,90819.0,90818.0,0.30019181]
[1731765843724,0.05708164,90819.0,90818.0,0.29921637]
[1731765845338,0.05708164,90819.0,90818.0,0.30972525]
[1731765845630,0.05708164,90819.0,90818.0,0.41428343]
[1731765846026,0.05708164,90819.0,90818.0,0.30972525]
[1731765846734,0.00205264,90819.0,90818.0,0.31051771]
[1731765847743,0.00205264,90819.0,90818.0,0.41507589]
[1731765849430,0.00205264,90819.0,90818.0,0.40456701]
[1731765850043,0.0051,90833.0,90832.0,0.055021]
[1731765850337,0.055018,90839.0,90834.0,0.05502]
[1731765850542,0.055018,90839.0,90835.0,0.29807631]
[1731765850723,0.08812,90842.0,90839.0,0.055017]
[1731765850929,0.08812,90842.0,90841.0,0.055016]
[1731765851532,0.055016,90841.0,90838.0,0.10455818]
[1731765851733,0.055016,90841.0,90839.0,0.29750523]
[1731765852037,0.055016,90841.0,90835.0,0.055019]
[1731765852235,0.055016,90841.0,90836.0,0.29734116]
[1731765852534,0.055017,90840.0,90837.0,0.30376956]
[1731765852764,0.055017,90840.0,90838.0,0.30376956]
[1731765852939,0.055017,90840.0,90839.0,0.30376956]
[1731765853124,0.055017,90840.0,90839.0,0.30339947]
[1731765854828,0.415817,90840.0,90839.0,0.0064284]
[1731765855037,0.85061518,90840.0,90839.0,0.0064284]
[1731765855434,0.85061518,90840.0,90824.0,0.39500824]
[1731765855435,0.055018,90838.0,90824.0,0.39500824]
[1731765855636,0.055018,90838.0,90837.0,0.26332606]
[1731765855843,0.85065618,90838.0,90837.0,0.00639673]
[1731765857440,0.85065618,90838.0,90837.0,0.01684672]
[1731765858049,0.503938,90838.0,90837.0,0.01684672]
[1731765858731,0.503938,90838.0,90835.0,0.26332606]
[1731765858732,0.055019,90836.0,90835.0,0.26332606]
[1731765858932,0.055019,90836.0,90835.0,0.00656016]
[1731765859235,0.055019,90836.0,90835.0,0.01705777]
[1731765860043,0.3608,90838.0,90836.0,0.055019]
[1731765860258,0.3608,90838.0,90837.0,0.01705777]
[1731765860540,0.415818,90838.0,90837.0,0.01705777]
[1731765861751,0.57418266,90838.0,90837.0,0.01705777]
[1731765862343,0.90446266,90838.0,90837.0,0.01705777]
[1731765862548,0.90446266,90838.0,90837.0,0.00656016]
[1731765863444,0.90446266,90838.0,90837.0,0.01706403]
[1731765865147,0.57418266,90838.0,90837.0,0.01706403]
[1731765865538,0.57418266,90838.0,90814.0,0.00165156]
[1731765865539,0.51916466,90838.0,90828.0,0.26335413]
[1731765865742,0.415823,90829.0,90827.0,0.26335413]
[1731765865945,0.08812,90828.0,90827.0,0.26335413]
[1731765866247,0.08812,90828.0,90827.0,0.28051625]
[1731765868346,0.1422166,90828.0,90827.0,0.28051625]
[1731765868549,0.1422166,90828.0,90827.0,0.01716212]
[1731765869262,0.1972406,90828.0,90827.0,0.01706805]
[1731765870150,0.1972406,90828.0,90827.0,0.28061962]
[1731765870358,0.1972406,90828.0,90827.0,0.01706805]
[1731765871450,0.1972406,90828.0,90820.0,0.26355157]
[1731765871451,0.63207878,90828.0,90820.0,0.26355157]
[1731765871751,0.05503,90817.0,90816.0,0.26355157]
[1731765872057,0.05503,90817.0,90815.0,0.26355157]
[1731765872058,0.14315,90817.0,90815.0,0.26355157]
[1731765872261,0.10455818,90816.0,90812.0,0.26355157]
[1731765872459,0.055033,90813.0,90812.0,0.26355157]
[1731765872756,0.055033,90813.0,90811.0,0.26355157]
[1731765872956,0.055033,90813.0,90812.0,0.26355157]
[1731765873354,0.055033,90813.0,90811.0,0.26355157]
[1731765873851,0.055033,90813.0,90812.0,0.26355157]
[1731765874244,0.055033,90813.0,90811.0,0.26355157]
[1731765874955,0.10455818,90816.0,90809.0,0.26355157]
[1731765875273,0.3608,90810.0,90808.0,0.26355157]
[1731765875552,0.055035,90809.0,90808.0,0.26355157]
[1731765876452,0.055035,90809.0,90803.0,0.32945232]
[1731765876453,0.3608,90810.0,90803.0,0.32945232]
[1731765876656,0.415835,90810.0,90808.0,0.2632836]
[1731765876950,0.415835,90810.0,90809.0,0.2632836]
[1731765877746,0.415835,90810.0,90808.0,0.2632836]
[1731765878053,0.3608,90810.0,90808.0,0.26324541]
[1731765878254,0.10455818,90809.0,90796.0,0.00165211]
[1731765878453,0.055043,90797.0,90796.0,0.00165211]
[1731765878654,0.143203,90797.0,90796.0,0.00165211]
[1731765881156,0.055051,90783.0,90780.0,0.3608]
[1731765881750,0.08816,90785.0,90766.0,0.39500824]
[1731765882057,0.055056,90776.0,90763.0,0.49956642]
[1731765882250,0.0051,90784.0,90763.0,0.10455818]
[1731765882453,0.3608,90779.0,90762.0,0.417263]
[1731765882656,0.3608,90779.0,90762.0,0.415863]
[1731765882856,0.055059,90771.0,90762.0,0.415863]
[1731765883463,0.055059,90771.0,90763.0,0.00638656]
[1731765883760,0.055059,90771.0,90762.0,0.415863]
[1731765883761,0.055059,90771.0,90762.0,0.420863]
[1731765884056,0.055059,90771.0,90762.0,0.3658]
[1731765884247,0.3618,90779.0,90762.0,0.3658]
[1731765884452,0.055062,90766.0,90762.0,0.3608]
[1731765884652,0.001,90771.0,90763.0,0.005]
[1731765884860,0.055063,90764.0,90763.0,0.012]
[1731765885258,0.055063,90764.0,90763.0,0.005]
[1731765886052,0.056063,90764.0,90763.0,0.007]
[1731765887059,0.057063,90764.0,90763.0,0.012]
[1731765889859,0.387583,90764.0,90763.0,0.012]
[1731765890066,0.387583,90764.0,90736.0,0.10455818]
[1731765890254,0.055071,90750.0,90737.0,6.207e-05]
[1731765890457,0.055072,90749.0,90737.0,6.207e-05]
[1731765892456,0.055073,90748.0,90737.0,6.207e-05]
[1731765892662,0.001,90749.0,90737.0,6.207e-05]
[1731765892858,0.055075,90745.0,90737.0,6.207e-05]
[1731765893057,0.055078,90739.0,90737.0,6.207e-05]
[1731765894062,0.056078,90739.0,90737.0,6.207e-05]
[1731765895057,0.057078,90739.0,90737.0,6.207e-05]
[1731765895471,0.08816,90738.0,90737.0,6.207e-05]
[1731765896567,0.0882,90738.0,90737.0,6.207e-05]
[1731765896866,0.0902,90738.0,90737.0,6.207e-05]
[1731765898176,0.002,90738.0,90737.0,6.207e-05]
[1731765899959,0.057078,90738.0,90737.0,6.207e-05]
[1731765900467,0.002,90738.0,90737.0,6.207e-05]
[1731765901269,0.001,90738.0,90737.0,0.33070207]
[1731765901464,0.002,90738.0,90737.0,0.33070207]
[1731765902562,0.06017,90752.0,90747.0,0.055073]
[1731765902764,0.3608,90753.0,90752.0,0.05507]
[1731765902966,0.3608,90753.0,90746.0,0.10455818]
[1731765902967,0.0882,90763.0,90757.0,0.055067]
[1731765903275,0.055063,90764.0,90757.0,0.055066]
[1731765903776,0.055063,90764.0,90758.0,0.00631677]
[1731765904066,0.055063,90764.0,90759.0,0.00631677]
[1731765904269,0.055064,90763.0,90760.0,0.00631677]
[1731765904471,0.055064,90763.0,90761.0,0.00631677]
[1731765904673,0.055064,90763.0,90762.0,0.00631677]
[1731765905374,0.056064,90763.0,90762.0,0.00631677]
[1731765905884,0.001,90763.0,90762.0,0.00631677]
[1731765906174,0.056063,90763.0,90762.0,0.00631677]
[1731765906672,0.057063,90763.0,90759.0,0.055065]
[1731765906876,0.057063,90763.0,90762.0,0.00635319]
[1731765907770,0.002,90763.0,90762.0,0.01677857]
[1731765907976,0.002,90763.0,90762.0,0.07184257]
[1731765908479,0.001,90763.0,90762.0,0.07184257]
[1731765908979,0.05506,90769.0,90762.0,0.07184257]
[1731765909175,0.002,90763.0,90762.0,0.055064]
[1731765909380,0.002,90763.0,90762.0,0.07205046]
[1731765909978,0.002,90763.0,90762.0,0.06159673]
[1731765910276,0.002,90763.0,90762.0,0.39211673]
[1731765910979,0.002,90763.0,90762.0,0.49667491]
[1731765911177,0.001,90763.0,90762.0,0.49667491]
[1731765911384,0.002,90763.0,90762.0,0.49667491]
[1731765911778,0.0051,90778.0,90777.0,0.055055]
[1731765911980,0.51719001,90784.0,90777.0,0.01693249]
[1731765912174,0.57168,90784.0,90783.0,0.30197823]
[1731765912373,0.57168,90784.0,90783.0,0.31893529]
[1731765912569,0.57168,90784.0,90783.0,0.01693249]
[1731765913083,0.57268,90784.0,90783.0,0.01693249]
[1731765913781,0.57168,90784.0,90783.0,0.01693249]